{"text_format":"1","workbook":"xlsx","n_sheets":12,"sheets":["1. Forside","2. Samlet prisloft","3. Driftsomkostninger","4. Historiske investeringer","5. Gennemførte investeringer","6. Korrektion investeringer","7. Planlagte investeringer","8. 1-1 omkostninger","9. Miljø- og servicemål","10. Nettofinansielle poster","11. Over- eller underdækning","12. Kontrol med indtægtsrammen"],"not_rendered":{"charts":0,"images":0,"macros":1,"external_links":0,"defined_names":0,"comments":0,"pivot_tables":0},"unopened":[],"bounds":{"document_bytes":16777216,"sheet_cells":100000,"rows_first":2000,"rows_last":500,"rows_between":2000,"halvings":0,"cell_chars":16384,"cell_head_chars":4096},"cells_cut":0,"cells_raw":0,"read":"whole","date_system":"1900"}

{"sheet":"1. Forside","index":0,"n_rows":26,"n_cols":4,"rows_kept":26,"cut":false,"hidden":false,"merged":[[20,3,20,5],[19,3,19,5],[18,3,18,5],[7,3,7,5],[12,3,12,5],[15,3,15,5],[16,3,16,5],[17,3,17,5],[25,3,25,5],[24,3,24,5],[23,3,23,5],[22,3,22,5],[21,3,21,5]]}
["Brønderslev Vand A/S"]
[]
[]
[]
[]
[]
[]
[null,null,null,"Bilag A"]
[]
[]
[]
[]
[null,null,null,"Indholdsfortegnelse"]
[]
[]
[null,null,"Fane nr. 2","Samlet prisloft "]
[null,null,"Fane nr. 3","Driftsomkostninger"]
[null,null,"Fane nr. 4","Historiske investeringer "]
[null,null,"Fane nr. 5","Gennemførte investeringer"]
[null,null,"Fane nr. 6","Korrektion investeringer"]
[null,null,"Fane nr. 7","Planlagte investeringer"]
[null,null,"Fane nr. 8","1:1 omkostninger"]
[null,null,"Fane nr. 9","Miljø- og servicemål"]
[null,null,"Fane nr. 10","Nettofinansielle poster"]
[null,null,"Fane nr. 11","Over- eller underdækning"]
[null,null,"Fane nr. 12","Kontrol med indtægtsrammen og oversigt over ekstraordinære effektiviseringsgevinster"]

{"sheet":"2. Samlet prisloft","index":1,"n_rows":38,"n_cols":6,"rows_kept":38,"cut":false,"hidden":false,"merged":[[3,1,3,5]]}
[{"$f":"'1. Forside'!A1","v":"Brønderslev Vand A/S"}]
[]
[]
[null,"Fane 2. Samlet prisloft for 2015"]
[]
[null,"Driftsomkostninger"]
[null,"Driftsomkostninger i prisloftet for 2014",{"$f":"'3. Driftsomkostninger'!C21","v":6052046.2649999997},"kr."]
[null,"Bortfald af væsentlige omkostninger",{"$f":"-'3. Driftsomkostninger'!C17","v":0},"kr."]
[null,"Korrektion for prisudviklingen 2014-2015",{"$f":"'3. Driftsomkostninger'!C23","v":4841.6370120000001},"kr."]
[null,"Forhøjelse til effektivt niveau iht. benchmarkingen",{"$f":"'3. Driftsomkostninger'!C29","v":0},"kr."]
[null,"Korrektion for generelt effektiviseringskrav",{"$f":"-'3. Driftsomkostninger'!C35","v":-26629.003565999999},"kr."]
[null,"Korrektion for individuelt effektiviseringskrav",{"$f":"-'3. Driftsomkostninger'!C44","v":-302602.31325000001},"kr."]
[null,"Driftsomkostninger i alt",{"$f":"SUM(C7:C12)","v":5727656.5851960005},"kr.",{"$f":"C13","v":5727656.5851960005}," kr."]
[null,"Investeringer"]
[null,"Tillæg for historiske investeringer",{"$f":"'4. Historiske investeringer'!C9","v":4544820.2071619621},"kr."]
[null,"Tillæg for gennemførte investeringer i 2011-2013",{"$f":"'5. Gennemførte investeringer'!F13","v":533339.94499999995},"kr."]
[null,"Korrektion af tillæg for planlagte investeringer vedrørende 2013  ",{"$f":"'6. Korrektion investeringer'!C10","v":-144229.36000000002},"kr."]
[null,"Tillæg for planlagte investeringer i 2014 og 2015",{"$f":"'7. Planlagte investeringer'!F22","v":919000.00000000012},"kr."]
[null,"Investeringstillæg i alt",{"$f":"SUM(C15:C18)","v":5852930.792161962},"kr.",{"$f":"C19","v":5852930.792161962}," kr."]
[null,"Øvrige omkostninger mv."]
[null,"Tillæg for 1:1 omkostninger i 2015",{"$f":"'8. 1-1 omkostninger'!C9","v":58000},"kr."]
[null,"Tillæg for afgift for ledningsført vand i 2015",{"$f":"'8. 1-1 omkostninger'!C14","v":5578300},"kr."]
[null,"Tillæg vedr. revisorerklæringer og DANVA/FVD-kontingent",{"$f":"'8. 1-1 omkostninger'!C20","v":53000},"kr."]
[null,"Korrektion ift. faktiske 1:1 omkostninger i 2013",{"$f":"'8. 1-1 omkostninger'!C26","v":-276310},"kr."]
[null,"Tillæg for driftsomkostninger til miljø- og servicemål i 2015",{"$f":"'9. Miljø- og servicemål'!C8","v":100000},"kr."]
[null,"Korrektion ift. faktiske driftsomkostninger til miljø- og servicemål i 2013",{"$f":"'9. Miljø- og servicemål'!C15","v":-51210},"kr."]
[null,"Tillæg/fradrag for nettofinansielle poster i 2015",{"$f":"'10. Nettofinansielle poster'!C9","v":250000},"kr."]
[null,"Korrektion ift. faktiske nettofinansielle poster i 2013",{"$f":"'10. Nettofinansielle poster'!C16","v":-132900},"kr."]
[null,"Øvrige omkostninger mv. i alt",{"$f":"SUM(C21:C28)","v":5578880},"kr.",{"$f":"C29","v":5578880}," kr."]
[null,"Historisk over- eller underdækning"]
[null,"Tillæg/fradrag for over- eller underdækning til og med 2010",{"$f":"'11. Over- eller underdækning'!C11","v":-62112.875661375663},"kr.",{"$f":"C31","v":-62112.875661375663}," kr."]
[null,"Korrektion i forhold til tidligere indtægtsramme "]
[null,"Korrektion for overholdelse af indtægtsramme i prisloft 2013",{"$f":"'12. Kontrol med indtægtsrammen'!E27","v":312584.65799999982},"kr.",{"$f":"C33","v":312584.65799999982}," kr."]
[null,"Samlet prisloft"]
[null,"Indtægtsramme i 2015 ",null,null,{"$f":"SUM(E13:E33)","v":17409939.159696586}," kr."]
[null,"Debiteret vandmængde i 2013",null,null,904328," m3"]
[null,"Prisloft 2015",null,null,{"$f":"E35/E36","v":19.251797090985335}," kr./m3"]
[null,"Prisloft 2015 ekskl. afgift for ledningsført vand ",null,null,{"$f":"(E35-C22)/E36","v":13.083349359631224}," kr./m3"]

{"sheet":"3. Driftsomkostninger","index":2,"n_rows":44,"n_cols":4,"rows_kept":44,"cut":false,"hidden":false,"merged":[[3,1,3,3]]}
[{"$f":"'1. Forside'!A1","v":"Brønderslev Vand A/S"}]
[]
[]
[null,"Fane 3. Driftsomkostninger "]
[]
[null,"Driftsomkostningerne i prisloftet for 2014"]
[null,"Korrigerede driftsomkostninger i prisloftet for 2013 (DOiPL 2013)",7962012,"kr."]
[null,"Prisfremskrivning 1,5 pct.",{"$f":"0.015*SUM(C7:C7)","v":119430.18},"kr."]
[null,"Generelt effektiviseringskrav (0 pct.)",0,"kr."]
[null,"Individuelt effektiviseringskrav ",-313578,"kr."]
[null,"Bortfald af midlertidigt tillæg  iht. § 8, stk. 5 (inkl. prisfremskrivning)",{"$f":"-1.015*1690461","v":-1715817.9149999998},"kr."]
[null,"Driftsomkostningerne i prisloftet for 2014 (DOiPL 2014)\n(korrigeret for bortfald af midlertidigt tillæg)",{"$f":"SUM(C7:C11)","v":6052046.2649999997},"kr."]
[]
[]
[null,"Korrektion for forventet bortfald af væsentlige omkostninger"]
[null,"Selskabets indberettede bortfald af væsentlige omkostninger inden 2015",0,"kr."]
[null,"Korrektion for forventet bortfald ",{"$f":"SUM(C16:C16)","v":0},"kr."]
[]
[]
[null,"Korrektion for prisudviklingen fra 2014-2015"]
[null,"Driftsomkostningerne i prisloftet for 2014",{"$f":"C12-C17","v":6052046.2649999997},"kr."]
[null,"Prisudvikling 2014 - 2015 ",0.08,"pct."]
[null,"Korrektion for prisudvikling",{"$f":"C21*(C22/100)","v":4841.6370120000001},"kr."]
[]
[]
[null,"Eventuel forhøjelse til effektivt niveau iht. benchmarkingen"]
[null,"Selskabets effektive driftsomkostninger iht. benchmarkingen",3234819,"kr."]
[null,"Selskabets pristalskorrigerede driftsomkostninger i 2015-niveau",{"$f":"C21+C23","v":6056887.9020119999},"kr."]
[null,"Eventuel forhøjelse til effektivt niveau",{"$f":"IF(C28>C27,0,C27-C28)","v":0},"kr."]
[]
[]
[null,"Korrektion for generelt effektiviseringskrav"]
[null,"Driftsomkostningerne i prisloftet for 2014",{"$f":"C21","v":6052046.2649999997},"kr. "]
[null,"Generelt effektiviseringskrav ",0.44,"pct."]
[null,"Endeligt generelt effektiviseringskrav",{"$f":"C33*(C34/100)","v":26629.003565999999},"kr. "]
[]
[]
[null,"Korrektion for individuelt effektiviseringskrav"]
[null,"Rå effektiviseringspotentiale",2817227,"kr."]
[null,"Effektiviseringspotentiale efter eventuel korrektion for særlige forhold",2817227,"kr."]
[null,"Effektiviseringspotentiale efter forsigtighedshensyn",1832560,"kr."]
[null,"Effektiviseringspotentiale efter eventuel korrektion for sammensætning af signifikante costdrivere",1832560,"kr. "]
[null,"Umiddelbart effektiviseringskrav",{"$f":"C42/4","v":458140},"kr."]
[null,"Endeligt individuelt effektiviseringskrav",{"$f":"IF(C43>0.05*C21,0.05*C21,IF(C43<0.01*C21,0,C43))","v":302602.31325000001},"kr. "]

{"sheet":"4. Historiske investeringer","index":3,"n_rows":9,"n_cols":4,"rows_kept":9,"cut":false,"hidden":false,"merged":[[3,1,3,2]]}
[{"$f":"'3. Driftsomkostninger'!A1","v":"Brønderslev Vand A/S"}]
[]
[]
[null,"Fane 4. Historiske investeringer "]
[]
[null,"Tillæg for historiske investeringer "]
[null,"Værdi af selskabets materielle anlægsaktiver pr. 1. januar 2010",222640255.83020365,"kr."]
[null,"Den årlige standardafskrivning på de materielle anlægsaktiver iht. POLKA",4544820.2071619621,"kr."]
[null,"Tillæg i alt i 2015",{"$f":"C8","v":4544820.2071619621},"kr."]

{"sheet":"5. Gennemførte investeringer","index":4,"n_rows":13,"n_cols":7,"rows_kept":13,"cut":false,"hidden":false,"merged":[[3,1,3,5],[6,5,6,6]]}
[{"$f":"'4. Historiske investeringer'!A1","v":"Brønderslev Vand A/S"}]
[]
[]
[null,"Fane 5. Gennemførte investeringer i 2010 - 2013 "]
[]
[null,"Tillæg for gennemførte investeringer i 2013"]
[null," Beskrivelse af investeringen   ","Årstal ","Std. levetid (år)   "," Anskaffelses-pris (kr.)","Afskrivning "]
[null,"Boring (inkl. etablering, forerør, filter og prøvepumpning)",2013,30,825725,{"$f":"E8/D8","v":27524.166666666668},"kr."]
[null,"Stik på ledningsnet, Konstruktioner",2013,75,802065,10694.2,"kr."]
[null,"Ø 50mm < Ledningsnet = Ø110 mm",2013,75,2401284,32017.119999999999,"kr."]
[null,"Tillæg for 2013 ",null,null,null,{"$f":"SUM(F8:F10)","v":70235.486666666664},"kr."]
[null,"Tillæg for 2010 - 2012",null,null,null,463104.45833333326,"kr."]
[null,"Samlet tillæg for gennemførte investeringer",null,null,null,{"$f":"F11+F12","v":533339.94499999995},"kr."]

{"sheet":"6. Korrektion investeringer","index":5,"n_rows":10,"n_cols":4,"rows_kept":10,"cut":false,"hidden":false,"merged":[[3,1,3,3]]}
[{"$f":"'5. Gennemførte investeringer'!A1","v":"Brønderslev Vand A/S"}]
[]
[]
[null,"Fane 6. Korrektion af tillæg for planlagte investeringer"]
[]
[null,"Korrektion af tillæg for planlagte investeringer vedr. 2013"]
[null,"Tillæg for planlagte investeringer i 2013 i prisloft 2013",136667,"kr."]
[null,"Tillæg for planlagte investeringer i 2013 i prisloft 2014",148033.33333333334,"kr."]
[null,"Selskabets faktiske afskrivninger på gennemførte investeringer i 2013",{"$f":"'5. Gennemførte investeringer'!F11","v":70235.486666666664},"kr."]
[null,"Korrektion af tillæg for planlagte investeringer vedr. 2013",{"$f":"C9-C7+C9-C8","v":-144229.36000000002},"kr."]

{"sheet":"7. Planlagte investeringer","index":6,"n_rows":22,"n_cols":7,"rows_kept":22,"cut":false,"hidden":false,"merged":[[6,5,6,6],[3,1,3,6]]}
[{"$f":"'6. Korrektion investeringer'!A1","v":"Brønderslev Vand A/S"}]
[]
[]
[null,"Fane 7. Planlagte investeringer "]
[]
[null,"Tillæg for planlagte investeringer i 2014 og 2015"]
[null,"Beskrivelse af investeringen   ","Årstal ","Std. levetid (år)   ","Anskaffelses-pris (kr.)   ","Afskrivning"]
[null,"SRO-brønd/kvarterbrønd/sektionsbrønd, Mek./EL",2014,15,500000,{"$f":"E8/D8","v":33333.333333333336},"kr."]
[null,"Sikring, avanceret (hegne, porte og overvågningssystemer), Mek./EL",2014,25,350000,{"$f":"E9/D9","v":14000},"kr."]
[null,"Boring (inkl. etablering, forerør, filter og prøvepumpning)",2014,30,1100000,{"$f":"E10/D10","v":36666.666666666664},"kr."]
[null,"SRO anlæg",2014,10,350000,35000,"kr."]
[null,"Stik på ledningsnet, Konstruktioner",2014,75,500000,6666.666666666667,"kr."]
[null,"Instrumenter (flowmåler+tryk transducer+alarmer)",2014,10,100000,10000,"kr."]
[null,"Instrumenter (flowmåler+tryk transducer+alarmer)",2014,10,100000,10000,"kr."]
[null,"Afregningsmålere, elektroniske = Ø 110mm (Qn 10)",2014,10,6000000,600000,"kr."]
[null,"Afregningsmålere, elektroniske = Ø 110mm (Qn 10)",2015,10,1000000,100000,"kr."]
[null,"Råvandsstation komplet montering og boringshus/tørbrønd",2015,30,1000000,33333.333333333336,"kr."]
[null,"Stik på ledningsnet, Konstruktioner",2015,75,500000,6666.666666666667,"kr."]
[null,"Ø 50mm < Ledningsnet = Ø110 mm",2015,75,2500000,33333.333333333336,"kr."]
[null,"Tillæg for 2014",null,null,null,{"$f":"SUMIF(C8:C19,\"2014\",F8:F19)","v":745666.66666666674},"kr."]
[null,"Tillæg for 2015",null,null,null,{"$f":"SUMIF(C8:C19,\"2015\",F8:F19)","v":173333.33333333334},"kr."]
[null,"Tillæg i alt",null,null,null,{"$f":"F20+F21","v":919000.00000000012},"kr."]

{"sheet":"8. 1-1 omkostninger","index":7,"n_rows":26,"n_cols":4,"rows_kept":26,"cut":false,"hidden":false,"merged":[[3,1,3,3],[16,1,16,3],[22,1,22,3]]}
[{"$f":"'7. Planlagte investeringer'!A1","v":"Brønderslev Vand A/S"}]
[]
[]
[null,"Fane 8. 1:1 omkostninger"]
[]
[null,"Tillæg for budgetterede 1:1 omkostninger i 2015"]
[null,"Betaling til Forsyningssekretariatet",33000,"kr."]
[null,"Ejendomsskatter",25000,"kr."]
[null,"Tillæg i alt ",{"$f":"SUM(C7:C8)","v":58000},"kr."]
[]
[]
[null,"Tillæg for afgift for ledningsført vand i 2015"]
[null,"Afgift for ledningsført vand (6,53 kr./m3)",5578300,"kr."]
[null,"Tillæg i alt ",{"$f":"SUM(C13:C13)","v":5578300},"kr."]
[]
[]
[null,"Tillæg for budgetterede nødvendige udgifter til revisorerklæringer samt ordinært medlemskab af DANVA og FVD i 2015"]
[null,"Betaling for ordinært medlemskab af DANVA/FVD",38000,"kr."]
[null,"Betaling for revisorerklæringer",15000,"kr."]
[null,"Tillæg i alt ",{"$f":"SUM(C18:C19)","v":53000},"kr."]
[]
[]
[null,"Korrektion af tillæg for faktiske 1:1 omkostninger (inkl. afgift for ledningsført vand, revisorerklæringer og ordinært medlemskab af DANVA/FVD) i 2013"]
[null,"Selskabets faktiske 1:1 omkostninger mv. i 2013, jf. reguleringsregnskabet",5630261,"kr."]
[null,"Tillæg for budgetterede 1:1 omkostninger mv. i prisloft 2013",5906571,"kr."]
[null,"Korrektion af tillæg for budgetterede 1:1 omkostninger mv. i 2013",{"$f":"C24-C25","v":-276310},"kr."]

{"sheet":"9. Miljø- og servicemål","index":8,"n_rows":15,"n_cols":4,"rows_kept":15,"cut":false,"hidden":false,"merged":[[3,1,3,3]]}
[{"$f":"'8. 1-1 omkostninger'!A1","v":"Brønderslev Vand A/S"}]
[]
[]
[null,"Fane 9. Driftsomkostninger til miljø- og servicemål "]
[]
[null,"Tillæg for budgetterede driftsomkostninger til miljø- og servicemål i 2015"]
[null,"Dokumenteret Drikkevandssikkerhed (DDS)",100000,"kr."]
[null,"Tillæg i alt",{"$f":"SUM(C7:C7)","v":100000},"kr."]
[]
[]
[]
[null,"Korrektion af tillæg for faktiske driftsomkostninger til miljø- og servicemål i 2013"]
[null,"Selskabets faktiske driftsomkostninger til miljø- og servicemål i 2013, jf. reguleringsregnskabet",48790,"kr."]
[null,"Tillæg for budgetterede driftsomkostninger til miljø- og servicemål i prisloft 2013",100000,"kr."]
[null,"Korrektion af tillæg for budgetterede driftsomkostninger til miljø- og servicemål i 2013",{"$f":"C13-C14","v":-51210},"kr."]

{"sheet":"10. Nettofinansielle poster","index":9,"n_rows":16,"n_cols":4,"rows_kept":16,"cut":false,"hidden":false,"merged":[[3,1,3,3]]}
[{"$f":"'2. Samlet prisloft'!A1","v":"Brønderslev Vand A/S"}]
[]
[]
[null,"Fane 10. Nettofinansielle poster"]
[]
[null,"Tillæg for budgetterede nettofinansielle poster i 2015"]
[null,"Budgetterede renteudgifter og gebyrer i 2015",250000,"kr."]
[null,"Budgetterede renteindtægter i 2015",0,"kr."]
[null,"Tillæg/fradrag i alt",{"$f":"C7-C8","v":250000},"kr."]
[]
[]
[]
[null,"Korrektion af tillæg for faktiske nettofinansielle poster i 2013"]
[null,"Selskabets faktiske nettofinansielle poster i 2013, jf. reguleringsregnskabet",167100,"kr."]
[null,"Tillæg for budgetterede nettofinansielle poster i prisloft 2013",300000,"kr."]
[null,"Korrektion af tillæg for budgetterede nettofinansielle poster i 2013",{"$f":"C14-C15","v":-132900},"kr."]

{"sheet":"11. Over- eller underdækning","index":10,"n_rows":11,"n_cols":4,"rows_kept":11,"cut":false,"hidden":false,"merged":[[3,1,3,3]]}
[{"$f":"'1. Forside'!A1","v":"Brønderslev Vand A/S"}]
[]
[]
[null,"Fane 11. Over- eller underdækning til og med 2010"]
[]
[null,"Tillæg/fradrag for over- eller underdækning til og med 2010"]
[null,"Opgjort over- eller underdækning per 31. december 2010",-310647,"kr."]
[null,"Heraf beløb indregnet i prislofterne for 2011 - 2014",62030.253968253965,"kr."]
[null,"Endnu ikke indregnet over- eller underdækning",{"$f":"C7-C8","v":-372677.25396825396},"kr."]
[null,"Resterende indregningsperiode",6,"år"]
[null,"Tillæg/fradrag i alt",{"$f":"IF(C7=0,0,C9/C10)","v":-62112.875661375663},"kr."]

{"sheet":"12. Kontrol med indtægtsrammen","index":11,"n_rows":38,"n_cols":12,"rows_kept":38,"cut":false,"hidden":false,"merged":[[3,1,3,5],[30,1,30,4],[5,1,5,5]]}
[{"$f":"'11. Over- eller underdækning'!A1","v":"Brønderslev Vand A/S"}]
[]
[]
[null,"Fane 12. Korrektion for overholdelse af indtægtsrammen i prisloftet for 2013"]
[]
[null,"Samlet opgørelse vedrørende overholdelse af indtægtsrammen i prisloftet for 2013"]
[null,"Indtægtsramme i prisloftet for 2013",null,null,18141334.044137999,"kr."]
[null,"Ikke anvendt likviditet vedrørende investeringer i 2013"]
[null,"Tillæg for historiske investeringer ",4723902.3861379977,"kr."]
[null,"Tillæg for gennemførte investeringer i 2011",372434,"kr."]
[null,"Korrektion af tillæg for planlagte investeringer i 2011",139964,"kr."]
[null,"Tillæg for planlagte investeringer i 2012 og 2013",269833,"kr."]
[null,"Indtægter fra tilslutningsbidrag",363699,"kr."]
[null,"Indtægter fra salg af anlægsaktiver",0,"kr."]
[null,"Erstatninger vedr. anlægsaktiver mv.",0,"kr."]
[null,"Ekstraordinær effektiviseringsgevinst anvendt til investeringer",0,"kr."]
[null,"Udgifter til investeringer",-5166978,"kr."]
[null,"Ikke anvendt likviditet vedr. investeringer i alt",{"$f":"SUM(C9:C17)","v":702854.38613799773},"kr.",{"$f":"IF(C18<0,0,-C18)","v":-702854.38613799773},"kr."]
[null,"Ekstraordinære effektiviseringsgevinster anvendt til takstnedsættelse"]
[null,"Ekstraordinær effektiviseringsgevinst anvendt til takstnedsættelse",0,"kr.",{"$f":"-C20","v":0},"kr."]
[null,"Korrektion af ikke opkrævet tillæg fra 2011 i prisloft 2013"]
[null,"Korrektion af ikke opkrævet tillæg fra 2011 i prisloft 2013",0,"kr.",{"$f":"-C22","v":0},"kr."]
[null,"Indtægter fra primære aktiviteter mv."]
[null,"Indtægter fra kubikmetertakster, faste takster, særbidrag, målergebyrer samt andre takster og gebyrer",17125895,"kr."]
[null,"Andre indtægter i prisloftåret, som selskabet har opnået i forbindelse med eller som følge af selskabets primære aktiviteter",0,"kr."]
[null,"Indtægter fra primære aktiviteter mv. i alt",{"$f":"SUM(C24:C25)","v":17125895},"kr.",{"$f":"-C26","v":-17125895},"kr."]
[null,"Tillæg/fradrag i prisloftet for 2015 i alt",null,null,{"$f":"E7+E18+E20+E22+E26","v":312584.65799999982},"kr."]
[]
[]
[]
[null,"Oversigt over ekstraordinære effektiviseringsgevinster"]
[]
[null,null,2012,null,2013,null,2014,null,2015,null,2016]
[null,"Indhentet ekstraordinær effektiviseringsgevinst",167662,"kr.",1214587.6579999998,"kr.",null,"kr.",null,"kr.",null,"kr."]
[null,"Gevinst anvendt til investeringer",0,"kr.",0,"kr.",null,"kr.",null,"kr.",null,"kr."]
[null,"Gevinst anvendt til takstnedsættelse",167662,"kr.",0,"kr.",null,"kr.",null,"kr.",null,"kr."]
[null,"Korrektion for  effektiviseringsgevinst der ikke er anvendt inden 4 år",0,"kr.",0,"kr.",null,"kr.",null,"kr.",{"$f":"IF(C38>SUM(E35:I36),C38-SUM(E35:I36),0)*-1","v":0},"kr."]
[null,"Resterende gevinst",{"$f":"C34-C35-C36","v":0},"kr.",{"$f":"C38+E34-E35-E36","v":1214587.6579999998},"kr.",{"$f":"E38+G34-G35-G36","v":1214587.6579999998},"kr.",{"$f":"G38+I34-I35-I36","v":1214587.6579999998},"kr.",{"$f":"K34-K35-K36+K37+I38","v":1214587.6579999998},"kr."]